fUST/lending_fUST_20250113
["ID","MTS","AMOUNT","RATE_DAILY","PERIOD"]
[348722934,1736752239777,-1801.63,0.00019452,3]
[348722936,1736752239787,-5350.67,0.00019452,2]
[348722950,1736752239889,-500.0,0.00019452,3]
[348722952,1736752239913,-1128.91952602,0.00019452,3]
[348722954,1736752239925,-1462.89765099,0.00019452,3]
[348722957,1736752239937,-610.02460827,0.00019452,3]
[348723021,1736752240567,-500.0,0.00019178,2]
[348723022,1736752240578,-1427.90821472,0.00019452,3]
[348723023,1736752240588,-500.0,0.00019452,3]
[348723024,1736752240597,-1280.94,0.00019452,3]
[348723025,1736752240606,-500.0,0.00019452,3]
[348723026,1736752240615,-500.0,0.00019452,3]
[348723027,1736752240624,-500.0,0.00019452,3]
[348723028,1736752240633,-708.425897,0.00019452,2]
[348723029,1736752240642,-708.425897,0.00019452,2]
[348723030,1736752240651,-500.0,0.00019452,3]
[348723031,1736752240660,-754.85,0.00019452,3]
[348723032,1736752240669,-772.27,0.00019452,3]
[348723033,1736752240678,-151.0,0.00019452,2]
[348723034,1736752240687,-1480.26,0.00019452,3]
[348723035,1736752240697,-500.0,0.00019452,3]
[348723036,1736752240706,-500.0,0.00019452,3]
[348723037,1736752240715,-500.0,0.00019452,3]
[348723038,1736752240724,-500.0,0.00019452,3]
[348723039,1736752240734,-12437.12,0.00019452,3]
[348723040,1736752240743,-877.14,0.00019452,3]
[348723041,1736752240752,-500.0,0.00019452,3]
[348723042,1736752240761,-283.97847581,0.00019452,3]
[348723043,1736752240770,-618.59,0.00019452,3]
[348723044,1736752240779,-500.0,0.00019452,3]
[348723045,1736752240788,-500.0,0.00019452,3]
[348723046,1736752240798,-500.0,0.00019452,3]
[348723047,1736752240807,-1113.01,0.00019452,3]
[348723049,1736752240816,-500.0,0.00019452,3]
[348723050,1736752240825,-509.62539741,0.00019452,3]
[348723051,1736752240834,-500.0,0.00019452,3]
[348723053,1736752240844,-510.728832,0.00019452,2]
[348723055,1736752240854,-510.728832,0.00019452,2]
[348723057,1736752240863,-510.728832,0.00019452,2]
[348723059,1736752240872,-510.728832,0.00019452,2]
[348723061,1736752240882,-500.0,0.00019452,3]
[348723063,1736752240892,-150.544,0.00019503,2]
[348723065,1736752240901,-1430.298,0.00019503,2]
[348723067,1736752240910,-2283.051,0.00019503,2]
[348723069,1736752240919,-497.288716,0.00019626,2]
[348723071,1736752240928,-497.288716,0.00019626,2]
[348723073,1736752240937,-1000.0,0.00019626,2]
[348723075,1736752240947,-364.751153,0.000197,2]
[348723077,1736752240956,-497.288716,0.000197,2]
[348723079,1736752240967,-497.288716,0.000197,2]
[348723081,1736752240984,-151.0,0.000197,2]
[348723083,1736752240994,-152.065721,0.000197,2]
[348723085,1736752241005,-151.0,0.000197,2]
[348723087,1736752241016,-153.20218897,0.0001972,2]
[348723089,1736752241025,-504.64905552,0.00019721,2]
[348723091,1736752241035,-1000.0,0.00019725,2]
[348723093,1736752241045,-364.751153,0.00019726,2]
[348723095,1736752241054,-364.751153,0.00019726,2]
[348723097,1736752241064,-364.751153,0.00019726,2]
[348723099,1736752241075,-497.288716,0.00019726,2]
[348723101,1736752241095,-497.288716,0.00019726,2]
[348723103,1736752241109,-497.288716,0.00019726,2]
[348723105,1736752241119,-497.288716,0.00019726,2]
[348723107,1736752241128,-497.288716,0.00019726,2]
[348723109,1736752241138,-497.288716,0.00019726,2]
[348723111,1736752241148,-497.288716,0.00019726,2]
[348723113,1736752241157,-497.288716,0.00019726,2]
[348723115,1736752241167,-2097.66,0.00019726,3]
[348723117,1736752241177,-500.0,0.00019726,3]
[348723119,1736752241187,-151.0,0.00019726,2]
[348723122,1736752241197,-500.0,0.00019726,3]
[348723124,1736752241207,-168.812927,0.00019726,2]
[348723125,1736752241216,-151.0,0.00019726,2]
[348723127,1736752241226,-151.0,0.00019726,2]
[348723130,1736752241235,-151.0,0.00019726,2]
[348723131,1736752241245,-363.450965,0.00019726,2]
[348723133,1736752241255,-363.450965,0.00019726,2]
[348723135,1736752241265,-500.0,0.00019726,3]
[348723138,1736752241275,-363.450965,0.00019726,2]
[348723140,1736752241285,-363.450965,0.00019726,2]
[348723141,1736752241295,-500.0,0.00019726,3]
[348723144,1736752241304,-239.1722911,0.00019726,3]
[348723145,1736752241314,-500.0,0.00019726,3]
[348723148,1736752241324,-173.37,0.00019726,3]
[348723149,1736752241334,-500.0,0.00019726,3]
[348723152,1736752241345,-407.17054621,0.00019726,3]
[348723154,1736752241355,-151.0,0.00019726,2]
[348723155,1736752241365,-151.0,0.00019726,2]
[348723157,1736752241375,-331.812036,0.00019726,2]
[348723159,1736752241384,-151.0,0.00019726,2]
[348723161,1736752241394,-331.812036,0.00019726,2]
[348723163,1736752241404,-331.812036,0.00019726,2]
[348723165,1736752241413,-331.812036,0.00019726,2]
[348723167,1736752241423,-151.0,0.00019726,2]
[348723169,1736752241432,-500.0,0.00019726,3]
[348723171,1736752241442,-500.0,0.00019726,3]
[348723174,1736752241452,-1801.63,0.00019726,3]
[348723176,1736752241462,-5350.67,0.00019726,2]
[348723177,1736752241471,-500.0,0.00019726,3]
[348723180,1736752241481,-4629.75,0.00019726,3]
[348723182,1736752241491,-500.0,0.00019726,3]
[348723184,1736752241501,-1280.94,0.00019726,3]
[348723186,1736752241511,-500.0,0.00019726,3]
[348723188,1736752241521,-500.0,0.00019726,3]
[348723190,1736752241531,-500.0,0.00019726,3]
[348723192,1736752241540,-708.425897,0.00019726,2]
[348723194,1736752241550,-500.0,0.00019726,3]
[348723196,1736752241559,-708.425897,0.00019726,2]
[348723198,1736752241569,-754.85,0.00019726,3]
[348723200,1736752241578,-772.27,0.00019726,3]
[348723202,1736752241588,-1480.26,0.00019726,3]
[348723204,1736752241598,-241.62428027,0.00019726,3]
[348723206,1736752241607,-500.0,0.00019726,3]
[348723208,1736752241618,-500.0,0.00019726,3]
[348723210,1736752241628,-500.0,0.00019726,3]
[348723212,1736752241638,-12437.12,0.00019726,3]
[348723214,1736752241647,-877.14,0.00019726,3]
[348723216,1736752241657,-500.0,0.00019726,3]
[348723218,1736752241666,-618.59,0.00019726,3]
[348723220,1736752241676,-500.0,0.00019726,3]
[348723222,1736752241685,-183.78,0.00019726,3]
[348723224,1736752241695,-1113.01,0.00019726,3]
[348723226,1736752241704,-500.0,0.00019726,3]
[348723228,1736752241713,-510.728832,0.00019726,2]
[348723230,1736752241723,-510.728832,0.00019726,2]
[348723232,1736752241732,-510.728832,0.00019726,2]
[348723234,1736752241741,-510.728832,0.00019726,2]
[348723236,1736752241751,-500.0,0.00019726,3]
[348723238,1736752241760,-364.751153,0.00019736,2]
[348723240,1736752241769,-1000.0,0.0001978,2]
[348723242,1736752241778,-473.2170672,0.00019836,2]
[348723244,1736752241787,-353.3287683,0.00019836,2]
[348723246,1736752241797,-353.3287683,0.00019836,2]
[348723248,1736752241806,-3000.0,0.000199,2]
[348723250,1736752241816,-151.0,0.000199,2]
[348723251,1736752241826,-151.0,0.000199,2]
[348723254,1736752241835,-151.0,0.000199,2]
[348723255,1736752241845,-708.425897,0.000199,2]
[348723258,1736752241855,-708.425897,0.000199,2]
[348723259,1736752241864,-3993.78087443,0.000199,2]
[348723261,1736752241873,-134803.46250109,0.0001999,2]
[348723722,1736752246546,-500.0,0.00019452,3]
[348723723,1736752246556,-334.28889053,0.00019726,3]
[348723739,1736752655970,171.949759,0.00013973,2]
[348723755,1736753206003,297.08659694,0.00015052,2]
[348723824,1736753432810,-320.99098157,0.00015288,2]
[348723826,1736753432820,-500.0,0.00015442,2]
[348723828,1736753432832,-500.0,0.00015442,2]
[348723830,1736753432841,-500.0,0.00015442,2]
[348723832,1736753432850,-500.0,0.00015442,2]
[348723834,1736753432860,-500.0,0.0001601,2]
[348723836,1736753432871,-500.0,0.00016853,2]
[348723838,1736753432880,-262.3051635,0.0001758,2]
[348723840,1736753432891,-300.0,0.00017739,2]
[348723842,1736753432900,-500.0,0.0001774,2]
[348723845,1736753432922,-500.0,0.00018627,2]
[348723847,1736753432934,-437.03779696,0.0001871,2]
[348723849,1736753432944,-153.0,0.0001874,2]
[348723852,1736753432954,-234.48655133,0.000189,2]
[348723854,1736753432964,-588.35,0.0001904,2]
[348723856,1736753432975,-162.14250234,0.00019078,2]
[348723858,1736753432984,-150.0,0.00019091,2]
[348723860,1736753432994,-151.0,0.00019166,2]
[348723862,1736753433004,-500.0,0.00019178,2]
[348723864,1736753433014,-340.65846001,0.00019178,2]
[348723866,1736753433025,-500.0,0.00019178,2]
[348723868,1736753433035,-500.0,0.00019178,2]
[348723870,1736753433045,-500.0,0.00019178,2]
[348723872,1736753433055,-507.79065956,0.00019178,2]
[348723873,1736753433065,-500.0,0.00019178,2]
[348723875,1736753433075,-500.0,0.00019178,2]
[348723877,1736753433085,-500.0,0.00019178,2]
[348723879,1736753433095,-500.0,0.00019178,2]
[348723881,1736753433104,-500.0,0.00019178,2]
[348723882,1736753433114,-500.0,0.00019178,2]
[348723884,1736753433125,-4998.4,0.00019178,2]
[348723886,1736753433135,-500.0,0.00019178,2]
[348723888,1736753433145,-1351.46,0.00019178,2]
[348723890,1736753433155,-500.0,0.00019178,2]
[348723891,1736753433164,-500.0,0.00019178,2]
[348723893,1736753433174,-1966.59,0.00019178,2]
[348723895,1736753433184,-500.0,0.00019178,2]
[348723897,1736753433193,-8080.53,0.00019178,2]
[348723899,1736753433203,-500.0,0.00019178,2]
[348723900,1736753433213,-500.0,0.00019178,2]
[348723902,1736753433223,-1183.33,0.00019178,2]
[348723904,1736753433233,-500.0,0.00019178,2]
[348723906,1736753433243,-660.49,0.00019178,2]
[348723908,1736753433252,-1631.95,0.00019178,2]
[348723910,1736753433262,-500.0,0.00019178,2]
[348723912,1736753433272,-500.0,0.00019178,2]
[348723913,1736753433282,-500.0,0.00019178,2]
[348723915,1736753433292,-500.0,0.00019178,2]
[348723917,1736753433302,-11211.05,0.00019178,2]
[348723919,1736753433312,-767.5,0.00019178,2]
[348723932,1736753433466,-500.0,0.00019178,2]
[348723934,1736753433476,-500.0,0.00019178,2]
[348723936,1736753433486,-500.0,0.00019178,2]
[348723938,1736753433496,-500.0,0.00019178,2]
[348723940,1736753433506,-973.88,0.00019178,2]
[348723941,1736753433515,-608.10065513,0.00019178,2]
[348723943,1736753433525,-192.96,0.00019178,2]
[348723945,1736753433535,-500.0,0.00019178,2]
[348723947,1736753433544,-500.0,0.00019178,2]
[348723949,1736753433554,-152.0,0.00019215,2]
[348723951,1736753433564,-2136.65357369,0.0001922,2]
[348723953,1736753433573,-176.71377593,0.00019335,2]
[348723955,1736753433583,-151.0,0.00019359,4]
[348723957,1736753433593,-420.0,0.0001936,2]
[348723958,1736753433602,-179.326,0.00019405,2]
[348723960,1736753433611,-500.0,0.0001941,2]
[348723962,1736753433620,-500.0,0.0001941,2]
[348723963,1736753433630,-500.0,0.0001941,2]
[348723965,1736753433639,-500.0,0.0001941,2]
[348723967,1736753433648,-500.0,0.0001941,2]
[348723969,1736753433657,-500.0,0.0001941,2]
[348723971,1736753433667,-500.0,0.0001941,2]
[348723973,1736753433676,-500.0,0.0001941,2]
[348723975,1736753433686,-352.13560546,0.0001941,2]
[348723976,1736753433695,-630.56824628,0.0001941,2]
[348723978,1736753433705,-500.0,0.0001941,2]
[348723980,1736753433718,-500.0,0.0001941,2]
[348723982,1736753433728,-500.0,0.0001941,2]
[348723984,1736753433739,-500.0,0.0001941,2]
[348723986,1736753433749,-500.0,0.0001941,2]
[348723988,1736753433758,-500.0,0.0001941,2]
[348723990,1736753433768,-500.0,0.0001941,2]
[348723992,1736753433778,-500.0,0.0001941,2]
[348723994,1736753433787,-421.24015833,0.0001941,2]
[348723996,1736753433797,-500.0,0.0001941,2]
[348723998,1736753433807,-13019.96329399,0.00019411,2]
[348723999,1736753433816,-1000.0,0.00019423,2]
[348724001,1736753433826,-151.0,0.00019435,4]
[348724003,1736753433838,-499.0,0.00019451,2]
[348724005,1736753433848,-151.0,0.00019452,2]
[348724007,1736753433858,-151.0,0.00019452,2]
[348724009,1736753433868,-151.0,0.00019452,2]
[348724010,1736753433878,-500.0,0.00019452,3]
[348724012,1736753433888,-500.0,0.00019452,3]
[348724014,1736753433898,-500.0,0.00019452,3]
[348724015,1736753433910,-401.66,0.00019452,3]
[348724017,1736753433921,-524.94199253,0.00019452,3]
[348724018,1736753433931,-500.0,0.00019452,3]
[348724019,1736753433942,-4998.4,0.00019452,3]
[348724021,1736753433952,-167.28748447,0.00019452,3]
[348724023,1736753433962,-1351.46,0.00019452,3]
[348724025,1736753433972,-500.0,0.00019452,3]
[348724026,1736753433982,-500.0,0.00019452,3]
[348724027,1736753433994,-1966.59,0.00019452,3]
[348724028,1736753434004,-500.0,0.00019452,3]
[348724029,1736753434014,-8080.53,0.00019452,2]
[348724030,1736753434024,-500.0,0.00019452,3]
[348724032,1736753434035,-173.20780243,0.00019452,3]
[348724034,1736753434045,-1183.33,0.00019452,3]
[348724036,1736753434055,-405.64146691,0.00019452,3]
[348724037,1736753434065,-660.49,0.00019452,3]
[348724039,1736753434076,-1631.95,0.00019452,3]
[348724041,1736753434085,-500.0,0.00019452,3]
[348724043,1736753434095,-500.0,0.00019452,3]
[348724045,1736753434104,-500.0,0.00019452,3]
[348724047,1736753434114,-500.0,0.00019452,3]
[348724049,1736753434124,-11211.05,0.00019452,3]
[348724051,1736753434137,-767.5,0.00019452,3]
[348724052,1736753434147,-500.0,0.00019452,3]
[348724054,1736753434157,-500.0,0.00019452,3]
[348724056,1736753434168,-500.0,0.00019452,3]
[348724058,1736753434178,-973.88,0.00019452,3]
[348724060,1736753434188,-500.0,0.00019452,3]
[348724062,1736753434198,-215.11037606,0.00019452,3]
[348724064,1736753434209,-1949.76502089,0.00019456,2]
[348724066,1736753434220,-151.0,0.0001951,4]
[348724067,1736753434230,-13019.96329399,0.00019516,2]
[348724069,1736753434240,-500.0,0.00019558,2]
[348724071,1736753434250,-153.0,0.00019562,2]
[348724073,1736753434260,-358.3789132,0.00019562,2]
[348724075,1736753434270,-153.0,0.00019562,2]
[348724077,1736753434281,-225.76810682,0.00019562,2]
[348724485,1736753438787,-434.81370448,0.00019178,2]
[348724489,1736753438817,-65.18629552,0.00019178,2]
[348724492,1736753438831,-500.0,0.00019452,3]
[348724494,1736753438845,-203.83936118,0.00019562,2]
[348724496,1736753438858,-214.9026291,0.00019562,2]
[348724499,1736753438870,-214.9026291,0.00019562,2]
[348724501,1736753438882,-151.0,0.00019585,4]
[348724503,1736753438894,-395.0,0.00019592,2]
[348724505,1736753438907,-151.0,0.00019661,4]
[348724507,1736753438919,-226.40759696,0.00019725,2]
[348724509,1736753438930,-191.30845046,0.00019725,2]
[348724512,1736753438942,-373.27911974,0.00019725,2]
[348724515,1736753438954,-151.0,0.00019726,2]
[348724518,1736753438966,-151.0,0.00019726,2]
[348724521,1736753438978,-254.5,0.00019726,3]
[348724522,1736753438989,-500.0,0.00019726,3]
[348724523,1736753439001,-500.0,0.00019726,3]
[348724524,1736753439013,-140.91251532,0.00019726,3]
[348724735,1736753441207,-500.0,0.00019178,2]
[348724737,1736753441220,-242.55093084,0.00019452,3]
[348724739,1736753441233,-257.44906916,0.00019452,3]
[348724740,1736753441244,-359.08748468,0.00019726,3]
[348724741,1736753441256,-4998.4,0.00019726,3]
[348724742,1736753441268,-1351.46,0.00019726,3]
[348724743,1736753441279,-500.0,0.00019726,3]
[348724744,1736753441290,-500.0,0.00019726,3]
[348724745,1736753441301,-1966.59,0.00019726,3]
[348724746,1736753441312,-500.0,0.00019726,3]
[348724747,1736753441322,-8080.53,0.00019726,2]
[348724748,1736753441332,-500.0,0.00019726,3]
[348724749,1736753441343,-1183.33,0.00019726,3]
[348724750,1736753441354,-660.49,0.00019726,3]
[348724751,1736753441365,-1631.95,0.00019726,3]
[348724753,1736753441375,-500.0,0.00019726,3]
[348724755,1736753441387,-413.21344616,0.00019726,3]
[348724837,1736753443849,-500.0,0.00019178,2]
[348724838,1736753443859,-86.78655384,0.00019726,3]
[348724839,1736753443870,-500.0,0.00019726,3]
[348724840,1736753443880,-500.0,0.00019726,3]
[348724841,1736753443891,-11211.05,0.00019726,3]
[348724842,1736753443903,-767.5,0.00019726,3]
[348724843,1736753443914,-500.0,0.00019726,3]
[348724844,1736753443926,-500.0,0.00019726,3]
[348724845,1736753443938,-500.0,0.00019726,3]
[348724846,1736753443951,-158.92743861,0.00019726,3]
[348724847,1736753443967,-814.95256139,0.00019726,3]
[348724848,1736753443979,-500.0,0.00019726,3]
[348724849,1736753443990,-500.0,0.00019726,3]
[348724850,1736753444001,-500.0,0.00019726,3]
[348724851,1736753444012,-151.0,0.00019736,4]
[348724852,1736753444024,-7534.04743861,0.000198,3]
[348724853,1736753444038,-499.9967325,0.000198,3]
[348724854,1736753444053,-24595.95582889,0.000198,3]
[348724855,1736753444064,-151.0,0.00019812,4]
[348724856,1736753444075,-155.0,0.00019825,2]
[348724857,1736753444085,-155.0,0.00019825,2]
[348724858,1736753444097,-155.0,0.00019825,2]
[348724859,1736753444107,-155.0,0.00019825,2]
[348724860,1736753444117,-155.0,0.00019825,2]
[348724861,1736753444130,-155.0,0.00019825,2]
[348724862,1736753444142,-155.0,0.00019825,2]
[348724863,1736753444153,-155.0,0.00019825,2]
[348724864,1736753444164,-155.0,0.00019825,2]
[348724865,1736753444176,-155.0,0.00019825,2]
[348724866,1736753444192,-155.0,0.00019825,2]
[348724867,1736753444204,-155.0,0.00019825,2]
[348724868,1736753444215,-155.0,0.00019825,2]
[348724869,1736753444227,-155.0,0.00019825,2]
[348724870,1736753444239,-155.0,0.00019825,2]
[348724871,1736753444250,-155.0,0.00019825,2]
[348724872,1736753444262,-39.61027811,0.00019825,2]
[348724873,1736753444277,-127.59972189,0.00019825,2]
[348724874,1736753444288,-306.437299,0.00019825,2]
[348724875,1736753444298,-306.437299,0.00019825,2]
[348724876,1736753444309,-162.1425023,0.00019826,2]
[348724877,1736753444320,-151.0,0.00019887,4]
[348724878,1736753444331,-3000.0,0.000199,2]
[348724879,1736753444343,-241.007175,0.000199,2]
[348724880,1736753444354,-176.71377592,0.000199,2]
[348724881,1736753444365,-3998.0026299,0.000199,2]
[348724882,1736753444377,-27786.93348519,0.0001999,2]
[348724883,1736753444391,-15363.20333159,0.0001999,2]
[348724884,1736753444405,-323.02234398,0.0001999,2]
[348724901,1736753446783,-500.0,0.00019452,3]
[348724903,1736753446794,-500.0,0.00019726,3]
[348724904,1736753446804,-186144.17082935,0.0001999,2]
[348724905,1736753577816,163.352271,0.00013973,2]
[348724914,1736754441245,163.352271,0.00013973,2]
[348724916,1736754530256,1303.80636322,0.00015,2]
[348724968,1736754632814,-409.22036397,0.0001678,2]
[348724971,1736754632827,-523.4542409,0.00017304,2]
[348724973,1736754632837,-3802.2051807,0.00017537,2]
[348724975,1736754632847,-300.0,0.00017594,2]
[348724977,1736754632857,-4517.5017058,0.00017595,2]
[348724979,1736754632869,-4378.3615722,0.00017595,2]
[348724981,1736754632879,-500.0,0.00017663,2]
[348724983,1736754632888,-1383.5612328,0.00017886,2]
[348724985,1736754632898,-1915.39129597,0.00018087,2]
[348724987,1736754632908,-644.06143211,0.00018087,2]
[348724989,1736754632918,-4433.34296675,0.00018218,2]
[348724992,1736754632929,-10824.62640805,0.00018218,2]
[348724994,1736754632939,-500.0,0.00018546,2]
[348724995,1736754632947,-196.63023186,0.000188,2]
[348724997,1736754632957,-280.66291041,0.000189,2]
[348724999,1736754632966,-579.764,0.0001904,2]
[348725001,1736754632975,-184.06980475,0.00019078,2]
[348725003,1736754632984,-151.0,0.00019166,2]
[348725005,1736754632994,-552.57800335,0.00019177,2]
[348725007,1736754633003,-500.0,0.00019177,2]
[348725009,1736754633013,-500.0,0.00019177,2]
[348725011,1736754633023,-500.0,0.00019177,2]
[348725013,1736754633032,-500.0,0.00019177,2]
[348725015,1736754633042,-500.0,0.00019177,2]
[348725018,1736754633053,-500.0,0.00019177,2]
[348725020,1736754633063,-470.44848947,0.00019177,2]
[348725022,1736754633072,-484.60640695,0.00019177,2]
[348725024,1736754633082,-500.0,0.00019177,2]
[348725026,1736754633092,-500.0,0.00019177,2]
[348725028,1736754633101,-500.0,0.00019177,2]
[348725030,1736754633111,-558.18724123,0.00019177,2]
[348725032,1736754633121,-500.0,0.00019178,2]
[348725034,1736754633130,-500.0,0.00019178,2]
[348725036,1736754633140,-1759.02,0.00019178,2]
[348725038,1736754633149,-500.0,0.00019178,2]
[348725040,1736754633159,-762.5,0.00019178,2]
[348725042,1736754633168,-500.0,0.00019178,2]
[348725044,1736754633179,-1182.52,0.00019178,2]
[348725046,1736754633188,-2285.60611391,0.00019178,2]
[348725048,1736754633201,-722.59937,0.00019178,2]
[348725163,1736754638769,-4062.25451609,0.00019178,2]
[348725165,1736754638779,-500.0,0.00019178,2]
[348725167,1736754638788,-9.41031425,0.00019178,2]
[348725169,1736754638800,-1025.99968575,0.00019178,2]
[348725171,1736754638809,-1427.95,0.00019178,2]
[348725173,1736754638819,-500.0,0.00019178,2]
[348725175,1736754638828,-577.93,0.00019178,2]
[348725177,1736754638837,-690.89,0.00019178,2]
[348725179,1736754638847,-500.0,0.00019178,2]
[348725182,1736754638857,-500.0,0.00019178,2]
[348725184,1736754638867,-500.0,0.00019178,2]
[348725186,1736754638876,-9809.67,0.00019178,2]
[348725188,1736754638885,-671.56,0.00019178,2]
[348725190,1736754638895,-500.0,0.00019178,2]
[348725192,1736754638904,-852.14,0.00019178,2]
[348725194,1736754638912,-500.0,0.00019178,2]
[348725196,1736754638922,-243.37323873,0.00019178,2]
[348725198,1736754638931,-500.0,0.00019178,2]
[348725200,1736754638941,-500.0,0.00019178,2]
[348725202,1736754638950,-500.0,0.00019178,2]
[348725204,1736754638960,-500.0,0.00019178,2]
[348725206,1736754638972,-4457.65,0.00019178,2]
[348725208,1736754638982,-500.0,0.00019178,2]
[348725210,1736754638991,-164.0846289,0.00019178,2]
[348725212,1736754639000,-420.0,0.00019205,2]
[348725214,1736754639010,-203.0514766,0.000194,2]
[348725216,1736754639020,-173.589,0.000194,2]
[348725218,1736754639029,-499.0,0.00019451,2]
[348725220,1736754639039,-1759.02,0.00019452,3]
[348725222,1736754639049,-500.0,0.00019452,3]
[348725224,1736754639058,-762.5,0.00019452,3]
[348725226,1736754639067,-160.66303075,0.00019452,3]
[348725228,1736754639077,-1182.52,0.00019452,3]
[348725230,1736754639086,-7070.46,0.00019452,2]
[348725232,1736754639095,-500.0,0.00019452,3]
[348725234,1736754639105,-1035.41,0.00019452,3]
[348725236,1736754639114,-1427.95,0.00019452,3]
[348725238,1736754639124,-500.0,0.00019452,3]
[348725240,1736754639133,-577.93,0.00019452,3]
[348725242,1736754639142,-690.89,0.00019452,3]
[348725244,1736754639152,-500.0,0.00019452,3]
[348725246,1736754639162,-500.0,0.00019452,3]
[348725248,1736754639173,-500.0,0.00019452,3]
[348725250,1736754639183,-9809.67,0.00019452,3]
[348725252,1736754639193,-671.56,0.00019452,3]
[348725254,1736754639202,-500.0,0.00019452,3]
[348725256,1736754639212,-852.14,0.00019452,3]
[348725258,1736754639222,-500.0,0.00019452,3]
[348725261,1736754639232,-472.41533165,0.00019452,3]
[348725263,1736754639242,-500.0,0.00019452,3]
[348725265,1736754639252,-500.0,0.00019452,3]
[348725266,1736754639262,-500.0,0.00019452,3]
[348725268,1736754639271,-4457.65,0.00019452,3]
[348725270,1736754639281,-500.0,0.00019452,3]
[348725273,1736754639291,-500.0,0.00019473,2]
[348725275,1736754639301,-155.021,0.00019646,2]
[348725276,1736754639311,-2039.628,0.00019646,2]
[348725278,1736754639320,-537.122,0.00019646,2]
[348725280,1736754639330,-2328.643,0.00019646,2]
[348725283,1736754639339,-150.412,0.00019646,2]
[348725285,1736754639349,-152.051,0.00019646,2]
[348725287,1736754639358,-151.0,0.00019694,2]
[348725288,1736754639367,-1759.02,0.00019726,3]
[348725290,1736754639377,-500.0,0.00019726,3]
[348725292,1736754639386,-762.5,0.00019726,3]
[348725294,1736754639396,-1182.52,0.00019726,3]
[348725296,1736754639405,-7070.46,0.00019726,2]
[348725299,1736754639416,-500.0,0.00019726,3]
[348725301,1736754639427,-1035.41,0.00019726,3]
[348725303,1736754639440,-1427.95,0.00019726,3]
[348725306,1736754639452,-161.68505326,0.00019726,3]
[348725308,1736754639465,-577.93,0.00019726,3]
[348725310,1736754639478,-690.89,0.00019726,3]
[348725313,1736754639490,-500.0,0.00019726,3]
[348725315,1736754639500,-500.0,0.00019726,3]
[348725317,1736754639511,-500.0,0.00019726,3]
[348725319,1736754639523,-9809.67,0.00019726,3]
[348725322,1736754639536,-671.56,0.00019726,3]
[348725324,1736754639548,-500.0,0.00019726,3]
[348725326,1736754639560,-852.14,0.00019726,3]
[348725328,1736754639572,-642.06794464,0.00019726,3]
[348725331,1736754639586,-500.0,0.00019726,3]
[348725333,1736754639598,-500.0,0.00019726,3]
[348725335,1736754639610,-342.17348231,0.00019726,3]
[348725337,1736754639622,-4457.65,0.00019726,3]
[348725340,1736754639634,-500.0,0.00019726,3]
[348725342,1736754639645,-254.415676,0.000198,2]
[348725344,1736754639659,-254.415676,0.000198,2]
[348725347,1736754639671,-151.0,0.000198,2]
[348725349,1736754639683,-197.934162,0.000198,2]
[348725351,1736754639695,-197.934162,0.000198,2]
[348725353,1736754639705,-3877.32608922,0.000199,2]
[348725355,1736754639717,-151.0,0.00019966,4]
[348725358,1736754639727,-236.93924577,0.00019973,2]